[Event "*** Titled Tuesday 3|2 Blitz (Late)"]
[Site "Chess.com"]
[Date "2016.11.01"]
[Round "7"]
[White "spirals5"]
[Black "Abrito99"]
[Result "0-1"]
[WhiteElo "2272"]
[BlackElo "2358"]
[TimeControl "180+2"]
[EndTime "18:35:40 PDT"]
[Termination "Abrito99 won on time"]

1. e4 {[%clk 0:03:01.9]} 1... e6 {[%clk 0:02:58]} 2. Nf3 {[%clk 0:03:01.3]} 2...
d5 {[%clk 0:02:59.3]} 3. Nc3 {[%clk 0:03:02.9]} 3... Nf6 {[%clk 0:02:59.2]} 4.
exd5 {[%clk 0:03:02.1]} 4... exd5 {[%clk 0:02:57.3]} 5. d4 {[%clk 0:03:03.1]}
5... Bd6 {[%clk 0:02:42.1]} 6. Bd3 {[%clk 0:03:03.3]} 6... h6 {[%clk 0:02:41.9]}
7. O-O {[%clk 0:03:03.8]} 7... c6 {[%clk 0:02:42.2]} 8. Re1+ {[%clk 0:03:04.1]}
8... Be6 {[%clk 0:02:40.2]} 9. Bf5 {[%clk 0:03:04.4]} 9... Qe7 {[%clk
0:02:37.5]} 10. Bxe6 {[%clk 0:03:02.6]} 10... fxe6 {[%clk 0:02:39.4]} 11. Qe2
{[%clk 0:03:02.6]} 11... Kf7 {[%clk 0:02:36.7]} 12. Ne5+ {[%clk 0:03:02.1]}
12... Bxe5 {[%clk 0:02:37.5]} 13. dxe5 {[%clk 0:03:02.6]} 13... Nfd7 {[%clk
0:02:35.2]} 14. f4 {[%clk 0:03:01.2]} 14... g6 {[%clk 0:02:30.4]} 15. Be3 {[%clk
0:03:01.1]} 15... Na6 {[%clk 0:02:29.6]} 16. a3 {[%clk 0:03:01.2]} 16... Nc7
{[%clk 0:02:21.1]} 17. Rf1 {[%clk 0:02:54.9]} 17... Kg7 {[%clk 0:02:11.6]} 18.
Kh1 {[%clk 0:02:46.5]} 18... Raf8 {[%clk 0:02:09.7]} 19. Rf3 {[%clk 0:02:36.8]}
19... c5 {[%clk 0:01:26.2]} 20. Bg1 {[%clk 0:02:35]} 20... a6 {[%clk 0:01:22.9]}
21. Raf1 {[%clk 0:02:34.2]} 21... b5 {[%clk 0:01:19.9]} 22. Rg3 {[%clk
0:02:27.3]} 22... h5 {[%clk 0:01:12.3]} 23. Rg5 {[%clk 0:02:21.4]} 23... Rf5
{[%clk 0:01:02.6]} 24. Rxf5 {[%clk 0:02:21.7]} 24... gxf5 {[%clk 0:01:03.3]} 25.
Rf3 {[%clk 0:02:15.5]} 25... h4 {[%clk 0:01:02.9]} 26. Rf1 {[%clk 0:01:52.7]}
26... Nf8 {[%clk 0:01:02.5]} 27. h3 {[%clk 0:01:52.9]} 27... Ng6 {[%clk
0:01:03.3]} 28. Bh2 {[%clk 0:01:53.5]} 28... d4 {[%clk 0:00:56.9]} 29. Nd1
{[%clk 0:01:53.3]} 29... Nd5 {[%clk 0:00:58.5]} 30. Qf3 {[%clk 0:01:48.4]} 30...
c4 {[%clk 0:00:48.2]} 31. Nf2 {[%clk 0:01:23.2]} 31... Ne3 {[%clk 0:00:43]} 32.
Rc1 {[%clk 0:01:23.4]} 32... Qd7 {[%clk 0:00:40.1]} 33. c3 {[%clk 0:01:20.9]}
33... Qd5 {[%clk 0:00:38.4]} 34. Qxd5 {[%clk 0:01:20.7]} 34... Nxd5 {[%clk
0:00:38.9]} 35. cxd4 {[%clk 0:01:21.5]} 35... Ngxf4 {[%clk 0:00:39.8]} 36. Ra1
{[%clk 0:00:34]} 36... Rd8 {[%clk 0:00:28.3]} 37. Nd1 {[%clk 0:00:33.5]} 37...
Ne2 {[%clk 0:00:26.8]} 38. Bg1 {[%clk 0:00:31.9]} 38... Ndf4 {[%clk 0:00:17.8]}
39. Be3 {[%clk 0:00:25.3]} 39... Ng3+ {[%clk 0:00:16.1]} 40. Kg1 {[%clk
0:00:24.5]} 40... Nfe2+ {[%clk 0:00:17.5]} 41. Kf2 {[%clk 0:00:23.3]} 41... Nxd4
{[%clk 0:00:16.4]} 42. Nc3 {[%clk 0:00:21.8]} 42... Nc2 {[%clk 0:00:16.4]} 43.
Rd1 {[%clk 0:00:18.7]} 43... Ne4+ {[%clk 0:00:14.4]} 44. Kf3 {[%clk 0:00:10.5]}
44... Rxd1 {[%clk 0:00:12]} 45. Nxd1 {[%clk 0:00:11]} 45... a5 {[%clk
0:00:08.8]} 46. Bb6 {[%clk 0:00:09.8]} 46... b4 {[%clk 0:00:07.2]} 47. Bxa5
{[%clk 0:00:09.4]} 47... bxa3 {[%clk 0:00:08.7]} 48. bxa3 {[%clk 0:00:10.1]}
48... Nxa3 {[%clk 0:00:10.4]} 49. Ne3 {[%clk 0:00:11]} 49... c3 {[%clk
0:00:09.9]} 50. Ke2 {[%clk 0:00:10.6]} 50... c2 {[%clk 0:00:10.4]} 51. Bd2
{[%clk 0:00:11.1]} 51... Nb1 {[%clk 0:00:08.8]} 52. Bc1 {[%clk 0:00:11.7]} 52...
Nbc3+ {[%clk 0:00:05.3]} 53. Kd3 {[%clk 0:00:13.2]} 53... Na2 {[%clk 0:00:06.3]}
54. Kxc2 {[%clk 0:00:13.4]} 54... Nb4+ {[%clk 0:00:06.4]} 55. Kd1 {[%clk
0:00:12.7]} 55... Nd3 {[%clk 0:00:07.8]} 56. Nc4 {[%clk 0:00:12.2]} 56... Kg6
{[%clk 0:00:06.3]} 57. Be3 {[%clk 0:00:11.6]} 57... f4 {[%clk 0:00:06.8]} 58.
Bg1 {[%clk 0:00:12.1]} 58... Kf5 {[%clk 0:00:08.3]} 59. Ke2 {[%clk 0:00:12.7]}
59... Nxe5 {[%clk 0:00:09.5]} 60. Nxe5 {[%clk 0:00:13.6]} 60... Kxe5 {[%clk
0:00:11.4]} 61. Kf3 {[%clk 0:00:14.7]} 61... Kf5 {[%clk 0:00:13.1]} 62. Bh2
{[%clk 0:00:15.1]} 62... Ng5+ {[%clk 0:00:14.5]} 63. Kf2 {[%clk 0:00:15.9]}
63... e5 {[%clk 0:00:16.4]} 64. Ke2 {[%clk 0:00:16.1]} 64... Ke4 {[%clk
0:00:17.1]} 65. Bg1 {[%clk 0:00:17.5]} 65... Ne6 {[%clk 0:00:18.1]} 66. Bf2
{[%clk 0:00:18.3]} 66... Nd4+ {[%clk 0:00:16.8]} 67. Kf1 {[%clk 0:00:19.2]}
67... Nf5 {[%clk 0:00:18.4]} 68. Ke2 {[%clk 0:00:18.5]} 68... Ng3+ {[%clk
0:00:19.9]} 69. Ke1 {[%clk 0:00:16.1]} 69... Kd3 {[%clk 0:00:20.4]} 70. Bc5
{[%clk 0:00:13.3]} 70... e4 {[%clk 0:00:21]} 71. Be7 {[%clk 0:00:14]} 71... Nf5
{[%clk 0:00:19]} 72. Bg5 {[%clk 0:00:14.3]} 72... Ke3 {[%clk 0:00:20.1]} 73. Kf1
{[%clk 0:00:15.1]} 73... Ng3+ {[%clk 0:00:18.8]} 74. Ke1 {[%clk 0:00:13.8]}
74... Nf5 {[%clk 0:00:20]} 75. Kf1 {[%clk 0:00:14.1]} 75... Kd3 {[%clk
0:00:11.4]} 76. Bxf4 {[%clk 0:00:14.8]} 76... e3 {[%clk 0:00:12.9]} 77. Ke1
{[%clk 0:00:14]} 77... Nd4 {[%clk 0:00:11.3]} 78. Kf1 {[%clk 0:00:03.9]} 78...
Nc2 {[%clk 0:00:11.2]} 0-1

[Event "*** Titled Tuesday 3|2 Blitz (Late)"]
[Site "Chess.com"]
[Date "2016.11.01"]
[Round "8"]
[White "brightthunder"]
[Black "enfanterrible"]
[Result "1-0"]
[WhiteElo "2529"]
[BlackElo "2188"]
[TimeControl "180+2"]
[EndTime "18:45:44 PDT"]
[Termination "brightthunder won by resignation"]

1. e4 {[%clk 0:03:01.9]} 1... d5 {[%clk 0:02:55]} 2. exd5 {[%clk 0:03:02]} 2...
Qxd5 {[%clk 0:02:55.8]} 3. Nc3 {[%clk 0:03:02.3]} 3... Qa5 {[%clk 0:02:56.8]} 4.
d4 {[%clk 0:03:04.1]} 4... Nf6 {[%clk 0:02:58.2]} 5. Nf3 {[%clk 0:03:04.4]} 5...
Bg4 {[%clk 0:02:58.6]} 6. h3 {[%clk 0:03:03.8]} 6... Bh5 {[%clk 0:02:59.9]} 7.
g4 {[%clk 0:03:04.2]} 7... Bg6 {[%clk 0:03:01.2]} 8. Ne5 {[%clk 0:03:05.1]} 8...
e6 {[%clk 0:03:02.7]} 9. h4 {[%clk 0:03:02.7]} 9... Nbd7 {[%clk 0:03:01.6]} 10.
Nc4 {[%clk 0:02:59.9]} 10... Qb4 {[%clk 0:02:46.2]} 11. a3 {[%clk 0:02:39.3]}
11... Qe7 {[%clk 0:02:47.1]} 12. Bg2 {[%clk 0:02:34.3]} 12... h5 {[%clk
0:02:39.2]} 13. g5 {[%clk 0:02:18.7]} 13... Nd5 {[%clk 0:02:39.8]} 14. O-O
{[%clk 0:02:15.2]} 14... c6 {[%clk 0:02:41]} 15. Na5 {[%clk 0:01:43.4]} 15...
Nxc3 {[%clk 0:02:37.5]} 16. bxc3 {[%clk 0:01:43.3]} 16... Nb6 {[%clk 0:02:38.9]}
17. Bf4 {[%clk 0:01:18.9]} 17... Qd7 {[%clk 0:02:38.2]} 18. c4 {[%clk 0:01:17]}
18... Be7 {[%clk 0:02:36.3]} 19. Rb1 {[%clk 0:01:14.1]} 19... O-O {[%clk
0:02:15.5]} 20. c5 {[%clk 0:01:09.5]} 20... Nd5 {[%clk 0:02:16.8]} 21. Rxb7
{[%clk 0:01:09.8]} 21... Qe8 {[%clk 0:02:17.6]} 22. Bg3 {[%clk 0:01:00.3]} 22...
Bd8 {[%clk 0:02:10.4]} 23. Nc4 {[%clk 0:00:59.3]} 23... Be7 {[%clk 0:02:01.7]}
24. Ne5 {[%clk 0:00:44.8]} 24... Qc8 {[%clk 0:01:56.9]} 25. Bxd5 {[%clk
0:00:41.5]} 25... Qxb7 {[%clk 0:01:57.3]} 26. Bxc6 {[%clk 0:00:42.4]} 26... Qb2
{[%clk 0:01:53.3]} 27. Nxg6 {[%clk 0:00:41.3]} 27... fxg6 {[%clk 0:01:52.7]} 28.
Bxa8 {[%clk 0:00:41.7]} 28... Rxa8 {[%clk 0:01:53.4]} 29. Qd3 {[%clk 0:00:42.6]}
29... Kh7 {[%clk 0:01:52.4]} 30. Re1 {[%clk 0:00:42.8]} 30... Qa2 {[%clk
0:01:51.4]} 31. c4 {[%clk 0:00:43.7]} 31... Rd8 {[%clk 0:01:50.6]} 32. Rxe6
{[%clk 0:00:43.1]} 32... Qa1+ {[%clk 0:01:46.7]} 33. Kh2 {[%clk 0:00:42.8]} 1-0

[Event "*** Titled Tuesday 3|2 Blitz (Late)"]
[Site "Chess.com"]
[Date "2016.11.01"]
[Round "8"]
[White "pastouche06"]
[Black "jposthuma"]
[Result "0-1"]
[WhiteElo "2278"]
[BlackElo "2187"]
[TimeControl "180+2"]
[EndTime "18:46:10 PDT"]
[Termination "jposthuma won by resignation"]

1. d4 {[%clk 0:03:01.9]} 1... Nf6 {[%clk 0:03:00.4]} 2. c4 {[%clk 0:03:02]} 2...
c5 {[%clk 0:03:02]} 3. d5 {[%clk 0:03:02.7]} 3... b5 {[%clk 0:03:03.6]} 4. cxb5
{[%clk 0:03:03.6]} 4... a6 {[%clk 0:03:05.1]} 5. f3 {[%clk 0:03:05.2]} 5... e6
{[%clk 0:02:59.8]} 6. e4 {[%clk 0:03:06]} 6... c4 {[%clk 0:03:01.1]} 7. Bxc4
{[%clk 0:03:06.3]} 7... axb5 {[%clk 0:03:02.4]} 8. Bxb5 {[%clk 0:03:06.1]} 8...
Qb6 {[%clk 0:03:02.5]} 9. Nc3 {[%clk 0:03:05.3]} 9... Bc5 {[%clk 0:03:02.1]} 10.
Nge2 {[%clk 0:03:05.5]} 10... O-O {[%clk 0:02:55.2]} 11. Bg5 {[%clk 0:03:03]}
11... exd5 {[%clk 0:02:34.4]} 12. Bxf6 {[%clk 0:03:01.7]} 12... gxf6 {[%clk
0:02:04.7]} 13. Qxd5 {[%clk 0:03:00.2]} 13... Bb7 {[%clk 0:01:58.3]} 14. Qd1
{[%clk 0:02:51.9]} 14... f5 {[%clk 0:01:45.6]} 15. a4 {[%clk 0:02:32.8]} 15...
fxe4 {[%clk 0:01:44.8]} 16. fxe4 {[%clk 0:02:30.9]} 16... Bf2+ {[%clk
0:01:20.9]} 17. Kf1 {[%clk 0:02:14.2]} 17... Qf6 {[%clk 0:01:08.2]} 18. Qd3
{[%clk 0:02:10.5]} 18... Be3+ {[%clk 0:00:53.7]} 19. Ke1 {[%clk 0:02:11]} 19...
Qf2+ {[%clk 0:00:55.6]} 20. Kd1 {[%clk 0:02:12.3]} 20... Nc6 {[%clk 0:00:41.1]}
21. Nd5 {[%clk 0:02:06.3]} 21... Qxg2 {[%clk 0:00:18.5]} 22. Kc2 {[%clk
0:02:02]} 22... Nd4+ {[%clk 0:00:13.9]} 23. Kc3 {[%clk 0:01:42.5]} 23... Nxe2+
{[%clk 0:00:13.8]} 24. Kb4 {[%clk 0:01:39.5]} 24... Bxd5 {[%clk 0:00:12.7]} 25.
Qxe3 {[%clk 0:01:36.9]} 25... Qxe4+ {[%clk 0:00:11.4]} 26. Qxe4 {[%clk
0:01:36.7]} 26... Bxe4 {[%clk 0:00:13.3]} 27. Rae1 {[%clk 0:01:35.1]} 27... Bxh1
{[%clk 0:00:13.2]} 28. Rxh1 {[%clk 0:01:32.8]} 28... Nd4 {[%clk 0:00:14.2]} 0-1

[Event "*** Titled Tuesday 3|2 Blitz (Late)"]
[Site "Chess.com"]
[Date "2016.11.01"]
[Round "8"]
[White "Fandorine"]
[Black "Aygehovit1992"]
[Result "1-0"]
[WhiteElo "2636"]
[BlackElo "2443"]
[TimeControl "180+2"]
[EndTime "18:46:17 PDT"]
[Termination "Fandorine won on time"]

1. e4 {[%clk 0:03:02]} 1... c5 {[%clk 0:03:00.7]} 2. Nf3 {[%clk 0:03:01.1]} 2...
d6 {[%clk 0:03:02.2]} 3. c3 {[%clk 0:02:59.5]} 3... Nf6 {[%clk 0:03:01.3]} 4. h3
{[%clk 0:03:01.2]} 4... Nc6 {[%clk 0:02:54.2]} 5. Bd3 {[%clk 0:03:02.1]} 5... g6
{[%clk 0:02:53]} 6. O-O {[%clk 0:03:03.4]} 6... Bg7 {[%clk 0:02:54.3]} 7. Bc2
{[%clk 0:03:04.8]} 7... O-O {[%clk 0:02:55.8]} 8. d4 {[%clk 0:03:05.1]} 8... e5
{[%clk 0:02:55.3]} 9. dxc5 {[%clk 0:02:53.5]} 9... dxc5 {[%clk 0:02:51.1]} 10.
Bg5 {[%clk 0:02:55]} 10... Be6 {[%clk 0:02:50.5]} 11. Nbd2 {[%clk 0:02:54.4]}
11... Qb6 {[%clk 0:02:48.7]} 12. Bb3 {[%clk 0:02:49]} 12... Bxb3 {[%clk
0:02:02]} 13. axb3 {[%clk 0:02:41.8]} 13... Qc7 {[%clk 0:01:56.3]} 14. Bxf6
{[%clk 0:02:40.5]} 14... Bxf6 {[%clk 0:01:55.9]} 15. Nc4 {[%clk 0:02:42.1]}
15... Rfd8 {[%clk 0:01:54.6]} 16. Qe2 {[%clk 0:02:42.1]} 16... Bg7 {[%clk
0:01:48.9]} 17. Ne3 {[%clk 0:02:37.1]} 17... Ne7 {[%clk 0:01:48.8]} 18. Qc4
{[%clk 0:02:22]} 18... h6 {[%clk 0:01:33.4]} 19. b4 {[%clk 0:02:14.5]} 19... b6
{[%clk 0:01:34.5]} 20. bxc5 {[%clk 0:02:12.9]} 20... Qxc5 {[%clk 0:01:35.5]} 21.
Qxc5 {[%clk 0:02:13.9]} 21... bxc5 {[%clk 0:01:37.4]} 22. Nc4 {[%clk 0:02:15.2]}
22... Rdb8 {[%clk 0:01:35.4]} 23. Ra6 {[%clk 0:02:14.4]} 23... Rb7 {[%clk
0:01:30.3]} 24. Rfa1 {[%clk 0:02:15.1]} 24... f6 {[%clk 0:01:20.5]} 25. Ne1
{[%clk 0:02:06.7]} 25... Nc8 {[%clk 0:01:00.7]} 26. Nd3 {[%clk 0:02:03.4]} 26...
Rc7 {[%clk 0:01:01.9]} 27. Kf1 {[%clk 0:02:03.5]} 27... Kf7 {[%clk 0:01:02]} 28.
Ke2 {[%clk 0:02:04.8]} 28... Bf8 {[%clk 0:01:03.3]} 29. g3 {[%clk 0:01:57.3]}
29... h5 {[%clk 0:01:03.6]} 30. f4 {[%clk 0:01:55.2]} 30... exf4 {[%clk
0:01:04.3]} 31. gxf4 {[%clk 0:01:55.8]} 31... Rb8 {[%clk 0:01:05.7]} 32. e5
{[%clk 0:01:48.8]} 1-0

[Event "*** Titled Tuesday 3|2 Blitz (Late)"]
[Site "Chess.com"]
[Date "2016.11.01"]
[Round "8"]
[White "GMMelik"]
[Black "psv98"]
[Result "0-1"]
[WhiteElo "2372"]
[BlackElo "2609"]
[TimeControl "180+2"]
[EndTime "18:46:41 PDT"]
[Termination "psv98 won by resignation"]

1. e4 {[%clk 0:03:01.9]} 1... e5 {[%clk 0:02:55]} 2. Nf3 {[%clk 0:03:02.9]} 2...
Nc6 {[%clk 0:02:56.3]} 3. Bc4 {[%clk 0:03:01.1]} 3... Bc5 {[%clk 0:02:55.3]} 4.
O-O {[%clk 0:03:01.4]} 4... d6 {[%clk 0:02:52.2]} 5. c3 {[%clk 0:03:02.1]} 5...
Bg4 {[%clk 0:02:47.3]} 6. d3 {[%clk 0:02:59.5]} 6... Nf6 {[%clk 0:02:39.5]} 7.
h3 {[%clk 0:03:00.8]} 7... Be6 {[%clk 0:02:36.9]} 8. Bxe6 {[%clk 0:02:55.7]}
8... fxe6 {[%clk 0:02:36.7]} 9. d4 {[%clk 0:02:51.3]} 9... Bb6 {[%clk
0:02:34.2]} 10. dxe5 {[%clk 0:02:47.5]} 10... dxe5 {[%clk 0:02:29.7]} 11. Qe2
{[%clk 0:02:46.1]} 11... O-O {[%clk 0:02:29.2]} 12. Be3 {[%clk 0:02:37.7]} 12...
Nh5 {[%clk 0:02:19.7]} 13. Nxe5 {[%clk 0:01:21]} 13... Nxe5 {[%clk 0:02:03.5]}
14. Qxh5 {[%clk 0:01:20.2]} 14... Bxe3 {[%clk 0:02:01.7]} 15. fxe3 {[%clk
0:00:54.6]} 15... Rxf1+ {[%clk 0:02:02.8]} 16. Kxf1 {[%clk 0:00:56.5]} 16...
Qd3+ {[%clk 0:01:42.8]} 17. Qe2 {[%clk 0:00:56.9]} 17... Rf8+ {[%clk 0:01:42.6]}
18. Ke1 {[%clk 0:00:58.3]} 18... Qd6 {[%clk 0:01:21.2]} 19. Na3 {[%clk
0:00:15.3]} 19... Nd3+ {[%clk 0:01:21.2]} 20. Kd1 {[%clk 0:00:12.6]} 20... Rf2
{[%clk 0:01:20.1]} 21. Nc4 {[%clk 0:00:13.2]} 21... Nxb2+ {[%clk 0:01:05.5]} 22.
Kc1 {[%clk 0:00:08.8]} 22... Rxe2 {[%clk 0:00:55.7]} 23. Nxd6 {[%clk 0:00:09.3]}
23... cxd6 {[%clk 0:00:32]} 0-1

[Event "*** Titled Tuesday 3|2 Blitz (Late)"]
[Site "Chess.com"]
[Date "2016.11.01"]
[Round "8"]
[White "nonscitis"]
[Black "michaelk123"]
[Result "1-0"]
[WhiteElo "2318"]
[BlackElo "2145"]
[TimeControl "180+2"]
[EndTime "18:46:42 PDT"]
[Termination "nonscitis won on time"]

1. e4 {[%clk 0:03:02]} 1... e6 {[%clk 0:03:01.2]} 2. d4 {[%clk 0:03:01.8]} 2...
d5 {[%clk 0:03:02.1]} 3. Nd2 {[%clk 0:03:03.4]} 3... c5 {[%clk 0:03:02.8]} 4.
Ngf3 {[%clk 0:03:03.9]} 4... cxd4 {[%clk 0:03:03]} 5. Nxd4 {[%clk 0:03:04.9]}
5... Nf6 {[%clk 0:02:59.7]} 6. Bd3 {[%clk 0:03:01.8]} 6... Nc6 {[%clk
0:02:53.9]} 7. Nxc6 {[%clk 0:03:02.2]} 7... bxc6 {[%clk 0:02:55.8]} 8. O-O
{[%clk 0:03:03.1]} 8... Be7 {[%clk 0:02:55.1]} 9. b3 {[%clk 0:03:03.3]} 9... O-O
{[%clk 0:02:46.4]} 10. Qe2 {[%clk 0:03:01]} 10... a5 {[%clk 0:02:32.4]} 11. a4
{[%clk 0:03:00.1]} 11... Qb6 {[%clk 0:02:32.8]} 12. c4 {[%clk 0:02:42.9]} 12...
Ba6 {[%clk 0:02:28.2]} 13. Bb2 {[%clk 0:02:40]} 13... g6 {[%clk 0:02:00.8]} 14.
Rab1 {[%clk 0:02:38.8]} 14... Rfd8 {[%clk 0:01:54]} 15. Qf3 {[%clk 0:02:34.8]}
15... d4 {[%clk 0:01:43.9]} 16. e5 {[%clk 0:02:34.2]} 16... Nd7 {[%clk
0:01:43.5]} 17. Qf4 {[%clk 0:02:30.4]} 17... Nc5 {[%clk 0:01:39.8]} 18. Be2
{[%clk 0:02:00.5]} 18... Qb4 {[%clk 0:00:32.1]} 19. Rfd1 {[%clk 0:01:47.4]}
19... d3 {[%clk 0:00:24.9]} 20. Bf3 {[%clk 0:01:47.1]} 20... Rac8 {[%clk
0:00:17.7]} 21. Bd4 {[%clk 0:01:46.1]} 21... Nd7 {[%clk 0:00:14.5]} 22. Ne4
{[%clk 0:01:44.3]} 22... c5 {[%clk 0:00:14.4]} 23. Bc3 {[%clk 0:01:43.2]} 23...
Qb8 {[%clk 0:00:15.4]} 24. Rxd3 {[%clk 0:01:38.3]} 24... Nf8 {[%clk 0:00:12.6]}
25. Nd6 {[%clk 0:01:32.8]} 25... Bxd6 {[%clk 0:00:07.8]} 26. exd6 {[%clk
0:01:32.2]} 26... Nd7 {[%clk 0:00:07.5]} 27. Bg4 {[%clk 0:01:26.6]} 27... Rf8
{[%clk 0:00:05.8]} 28. Qh6 {[%clk 0:01:24.4]} 28... f6 {[%clk 0:00:02.9]} 29.
Bxe6+ {[%clk 0:01:24.6]} 29... Kh8 {[%clk 0:00:04.4]} 30. Bxd7 {[%clk
0:01:23.6]} 30... Rcd8 {[%clk 0:00:04.6]} 31. Be6 {[%clk 0:01:21.8]} 31... Rxd6
{[%clk 0:00:05.9]} 32. Rh3 {[%clk 0:01:19.2]} 32... Rf7 {[%clk 0:00:02.3]} 33.
Bxf7 {[%clk 0:01:19.7]} 1-0

[Event "*** Titled Tuesday 3|2 Blitz (Late)"]
[Site "Chess.com"]
[Date "2016.11.01"]
[Round "8"]
[White "DanielNaroditsky"]
[Black "howitzer14"]
[Result "1/2-1/2"]
[WhiteElo "2746"]
[BlackElo "2776"]
[TimeControl "180+2"]
[EndTime "18:46:47 PDT"]
[Termination "Game drawn by agreement"]

1. d4 {[%clk 0:03:02]} 1... Nf6 {[%clk 0:02:59.8]} 2. Bf4 {[%clk 0:03:03.6]}
2... g6 {[%clk 0:02:59.7]} 3. Nc3 {[%clk 0:03:04.4]} 3... Bg7 {[%clk 0:03:01.6]}
4. e4 {[%clk 0:03:05.5]} 4... d6 {[%clk 0:03:03.1]} 5. Be2 {[%clk 0:03:07]} 5...
O-O {[%clk 0:02:58.9]} 6. Nf3 {[%clk 0:03:08.4]} 6... a6 {[%clk 0:02:55]} 7. a4
{[%clk 0:03:08.7]} 7... Nc6 {[%clk 0:02:53.9]} 8. O-O {[%clk 0:03:08.6]} 8...
Bg4 {[%clk 0:02:48]} 9. d5 {[%clk 0:03:03.1]} 9... Nb4 {[%clk 0:02:46.1]} 10.
Nb1 {[%clk 0:02:52.7]} 10... a5 {[%clk 0:02:33.1]} 11. c3 {[%clk 0:02:53.9]}
11... Na6 {[%clk 0:02:33.3]} 12. Nbd2 {[%clk 0:02:55.5]} 12... c6 {[%clk
0:02:25.5]} 13. dxc6 {[%clk 0:02:42.3]} 13... bxc6 {[%clk 0:02:27.4]} 14. e5
{[%clk 0:02:39.3]} 14... Nh5 {[%clk 0:02:23.7]} 15. Be3 {[%clk 0:02:37.2]} 15...
dxe5 {[%clk 0:02:21.4]} 16. h3 {[%clk 0:02:33.8]} 16... Be6 {[%clk 0:02:19.3]}
17. Ng5 {[%clk 0:02:22.2]} 17... Nf4 {[%clk 0:02:19.7]} 18. Bxf4 {[%clk
0:01:57]} 18... exf4 {[%clk 0:02:21.6]} 19. Nxe6 {[%clk 0:01:58.6]} 19... fxe6
{[%clk 0:02:21.9]} 20. Bxa6 {[%clk 0:01:58.1]} 20... Rxa6 {[%clk 0:02:23.1]} 21.
Qe2 {[%clk 0:01:59.8]} 21... Qc8 {[%clk 0:02:23.1]} 22. Qe4 {[%clk 0:01:44.9]}
22... c5 {[%clk 0:02:21.1]} 23. Nc4 {[%clk 0:01:41.1]} 23... Kh8 {[%clk
0:02:15.5]} 24. f3 {[%clk 0:01:34.3]} 24... Rf5 {[%clk 0:02:08]} 25. Rad1 {[%clk
0:01:34.2]} 25... Bf6 {[%clk 0:02:08.4]} 26. Rd2 {[%clk 0:01:30.3]} 26... Kg7
{[%clk 0:01:59.2]} 27. Rfd1 {[%clk 0:01:30.9]} 27... Qc6 {[%clk 0:01:44.4]} 28.
Qxc6 {[%clk 0:01:23.7]} 28... Rxc6 {[%clk 0:01:46.3]} 29. Rd7 {[%clk 0:01:13.2]}
29... Ra6 {[%clk 0:01:43.4]} 30. Kf2 {[%clk 0:00:59.3]} 30... Bh4+ {[%clk
0:01:35.2]} 31. Ke2 {[%clk 0:00:58.8]} 31... Kh6 {[%clk 0:01:22.1]} 32. Rd8
{[%clk 0:00:52.8]} 32... Rg5 {[%clk 0:01:17.6]} 33. Kf1 {[%clk 0:00:54]} 33...
Rf5 {[%clk 0:01:14.8]} 34. R1d7 {[%clk 0:00:20.6]} 34... Bf6 {[%clk 0:01:11.6]}
35. Rd1 {[%clk 0:00:19.3]} 1/2-1/2

[Event "*** Titled Tuesday 3|2 Blitz (Late)"]
[Site "Chess.com"]
[Date "2016.11.01"]
[Round "8"]
[White "MFBerna"]
[Black "ZEN-22"]
[Result "0-1"]
[WhiteElo "2186"]
[BlackElo "2225"]
[TimeControl "180+2"]
[EndTime "18:46:59 PDT"]
[Termination "ZEN-22 won on time"]

1. e4 {[%clk 0:03:02]} 1... d5 {[%clk 0:03:00.2]} 2. exd5 {[%clk 0:03:02.8]}
2... c6 {[%clk 0:03:02.1]} 3. d4 {[%clk 0:03:02.7]} 3... cxd5 {[%clk 0:03:03.2]}
4. c4 {[%clk 0:03:01.4]} 4... Nc6 {[%clk 0:03:05.1]} 5. Nc3 {[%clk 0:03:00.3]}
5... Nf6 {[%clk 0:03:05.4]} 6. Bg5 {[%clk 0:02:47]} 6... e6 {[%clk 0:03:00.9]}
7. Nf3 {[%clk 0:02:46.5]} 7... Be7 {[%clk 0:03:01]} 8. cxd5 {[%clk 0:02:41.5]}
8... Nxd5 {[%clk 0:03:01.2]} 9. Bxe7 {[%clk 0:02:40.4]} 9... Ndxe7 {[%clk
0:03:02.1]} 10. Bd3 {[%clk 0:02:30.5]} 10... h6 {[%clk 0:02:59.8]} 11. O-O
{[%clk 0:02:30.5]} 11... O-O {[%clk 0:03:00.9]} 12. Re1 {[%clk 0:02:14.4]} 12...
a6 {[%clk 0:02:59.6]} 13. Re4 {[%clk 0:02:15.2]} 13... Nf5 {[%clk 0:02:53.7]}
14. Rg4 {[%clk 0:02:00.9]} 14... e5 {[%clk 0:02:48.1]} 15. dxe5 {[%clk
0:01:53.2]} 15... Ne3 {[%clk 0:02:45.8]} 16. Rxg7+ {[%clk 0:01:40.9]} 16... Kxg7
{[%clk 0:02:46.9]} 17. fxe3 {[%clk 0:01:42.8]} 17... Bg4 {[%clk 0:02:47]} 18.
Be2 {[%clk 0:01:18.1]} 18... Qxd1+ {[%clk 0:02:45.8]} 19. Rxd1 {[%clk 0:01:20]}
19... Rad8 {[%clk 0:02:45.1]} 20. Rf1 {[%clk 0:00:57.5]} 20... b5 {[%clk
0:02:43.4]} 21. Ne4 {[%clk 0:00:42.5]} 21... Bxf3 {[%clk 0:02:42.5]} 22. Rxf3
{[%clk 0:00:44.4]} 22... Nxe5 {[%clk 0:02:43.9]} 23. Rg3+ {[%clk 0:00:45.8]}
23... Ng6 {[%clk 0:02:41.1]} 24. h4 {[%clk 0:00:43.5]} 24... h5 {[%clk
0:02:31.2]} 25. Bxh5 {[%clk 0:00:33.3]} 25... Rh8 {[%clk 0:02:31.7]} 26. Rg5
{[%clk 0:00:24.4]} 26... Rde8 {[%clk 0:02:21.9]} 27. Bxg6 {[%clk 0:00:18.5]}
27... fxg6 {[%clk 0:02:21.6]} 28. Nd6 {[%clk 0:00:20.4]} 28... Re6 {[%clk
0:02:18.1]} 29. Nf5+ {[%clk 0:00:18.3]} 29... Kf6 {[%clk 0:02:19.3]} 30. Nd4
{[%clk 0:00:10.5]} 30... Rxe3 {[%clk 0:02:20]} 31. Nf3 {[%clk 0:00:05.6]} 31...
Re2 {[%clk 0:02:19.5]} 32. Rc5 {[%clk 0:00:06.3]} 32... Rxb2 {[%clk 0:02:18.6]}
33. Rc6+ {[%clk 0:00:07.7]} 33... Kf5 {[%clk 0:02:20.2]} 34. Rxa6 {[%clk
0:00:09.6]} 34... Rd8 {[%clk 0:02:18.7]} 35. Rc6 {[%clk 0:00:06.4]} 35... Rd3
{[%clk 0:02:14.8]} 36. Rc5+ {[%clk 0:00:05.7]} 36... Kf4 {[%clk 0:02:16.1]} 37.
Rg5 {[%clk 0:00:05]} 37... Ra3 {[%clk 0:02:03.5]} 38. Rxg6 {[%clk 0:00:04.8]}
38... Raxa2 {[%clk 0:02:05.1]} 39. h5 {[%clk 0:00:05.7]} 39... Ra1+ {[%clk
0:02:02.6]} 40. Kh2 {[%clk 0:00:06.7]} 40... Rbb1 {[%clk 0:02:04.5]} 41. Rf6+
{[%clk 0:00:05.7]} 41... Kg4 {[%clk 0:02:05.8]} 42. Ne5+ {[%clk 0:00:04.9]}
42... Kxh5 {[%clk 0:02:06]} 43. Kg3 {[%clk 0:00:03.3]} 43... Rf1 {[%clk
0:02:02.5]} 44. Rxf1 {[%clk 0:00:02.2]} 44... Rxf1 {[%clk 0:02:03.2]} 0-1